bitfinex/quotes_ETHUSD_20251214
["timestamp","ask_amount","ask_price","bid_price","bid_amount"]
[1765730006391,3.23268895,3093.4,3093.0,0.472]
[1765730006587,0.517,3093.3,3093.0,0.472]
[1765730007086,0.517,3093.3,3093.2,0.4646]
[1765730008657,0.09102583,3093.7,3093.2,0.4646]
[1765730008658,3.23195759,3094.1,3093.2,4.14913841]
[1765730008862,3.23174869,3094.3,3094.1,0.6457]
[1765730009104,0.001,3094.4,3094.3,0.4646]
[1765730009492,0.001,3094.4,3094.3,0.9163]
[1765730010990,0.001,3094.4,3094.3,4.14804869]
[1765730018127,0.001,3094.4,3094.3,0.4646]
[1765730018512,0.001,3094.4,3094.3,4.14804869]
[1765730018714,0.001,3094.4,3094.3,0.9163]
[1765730018916,0.001,3094.4,3094.3,4.14804869]
[1765730019225,0.001,3094.4,3094.3,1.67240297]
[1765730019403,0.001,3094.4,3094.3,4.14804869]
[1765730019604,0.001,3094.4,3094.3,0.9163]
[1765730020320,0.001,3094.4,3094.3,4.14804869]
[1765730020711,0.001,3094.4,3094.3,0.9163]
[1765730021234,0.001,3094.4,3093.8,0.1811]
[1765730021534,0.001,3094.4,3094.0,3.23199318]
[1765730022039,0.001,3094.4,3094.0,3.68369318]
[1765730022498,0.001,3094.4,3094.1,0.4517]
[1765730022696,0.001,3094.4,3093.9,3.23216652]
[1765730022894,0.001,3094.4,3094.0,0.4517]
[1765730023519,0.001,3094.4,3094.3,0.4646]
[1765730023909,0.001,3094.4,3094.3,0.9163]
[1765730024402,0.001,3094.4,3094.3,4.14804869]
[1765730024628,0.001,3094.4,3094.3,0.9163]
[1765730024799,0.001,3094.4,3094.3,4.14804869]
[1765730025530,0.001,3094.4,3094.3,0.9163]
[1765730026421,0.001,3094.4,3094.3,0.4646]
[1765730026725,0.0914,3094.4,3093.8,0.6328]
[1765730026924,0.0914,3094.4,3093.8,0.1811]
[1765730027121,0.0914,3094.4,3093.6,3.2324139]
[1765730027635,0.0914,3094.4,3093.7,3.2323685]
[1765730027801,0.0914,3094.4,3093.6,3.23245508]
[1765730028002,0.5464,3094.4,3093.4,3.23261673]
[1765730028232,0.5464,3094.4,3093.4,3.23263049]
[1765730028408,3.23174869,3094.3,3093.4,1.27219707]
[1765730028598,3.23174869,3094.3,3093.5,0.4517]
[1765730029211,0.001,3094.4,3094.2,0.4646]
[1765730029529,0.001,3094.4,3094.3,0.4646]
[1765730029705,0.001,3094.4,3094.1,0.1811]
[1765730029905,0.001,3094.4,3093.8,0.4517]
[1765730030229,6.46446074,3094.4,3093.4,0.69172178]
[1765730030426,1.10514607,3094.3,3093.3,3.68441113]
[1765730030607,3.23185314,3094.2,3093.3,0.4517]
[1765730030812,3.69055314,3094.2,3093.3,0.4517]
[1765730031209,3.23185314,3094.2,3093.3,0.4517]
[1765730031409,0.4587,3094.1,3093.3,3.68448415]
[1765730031634,1.21558524,3094.1,3093.3,3.68448415]
[1765730032332,1.21558524,3094.1,3093.3,0.4517]
[1765730033125,3.23206205,3094.0,3093.3,0.4517]
[1765730033628,0.1833,3093.9,3093.3,0.4517]
[1765730033833,0.1833,3093.9,3093.1,3.74897542]
[1765730034210,0.1833,3093.9,3093.1,3.68467542]
[1765730034820,1.47990093,3093.9,3092.9,3.41984115]
[1765730035016,4.07017081,3093.9,3093.1,3.23300248]
[1765730035540,4.07017081,3093.9,3093.2,0.4517]
[1765730035711,4.25347081,3093.9,3093.2,0.4517]
[1765730036932,3.23207602,3094.0,3093.2,0.4517]
[1765730037232,3.74798079,3094.1,3093.2,0.4517]
[1765730037432,3.74898079,3094.1,3093.2,0.4517]
[1765730037645,6.98096158,3094.1,3093.2,0.4517]
[1765730037809,7.43986158,3094.1,3093.2,0.4517]
[1765730038136,0.74398616,3094.0,3093.2,3.68453435]
[1765730038311,0.74398616,3094.0,3093.3,3.23279234]
[1765730038640,0.74398616,3094.0,3093.3,3.69579187]
[1765730039116,3.23216652,3093.9,3093.3,3.69577618]
[1765730039323,3.97611229,3094.0,3093.3,3.69577618]
[1765730039640,0.74398616,3094.0,3093.4,0.463]
[1765730039846,0.517,3094.1,3093.4,0.463]
[1765730040006,3.74897408,3094.1,3093.4,0.463]
[1765730040731,0.001,3094.1,3094.0,0.4548]
[1765730041114,0.001,3094.1,3094.0,0.9178]
[1765730042727,0.001,3094.1,3094.0,0.4548]
[1765730042932,0.4619,3094.1,3093.3,0.463]
[1765730043256,0.4619,3094.1,3093.3,4.21073362]
[1765730043542,0.5502,3094.1,3093.3,0.515]
[1765730043843,0.001,3094.1,3093.5,3.23257248]
[1765730044518,3.233044,3094.1,3093.4,3.23260912]
[1765730044751,3.233044,3094.1,3093.3,4.21077948]
[1765730044924,3.233044,3094.1,3093.4,3.23267037]
[1765730046047,0.001,3094.1,3093.4,3.23268895]
[1765730046866,1.15223974,3094.1,3093.4,3.23268895]
[1765730047167,1.15223974,3094.1,3092.9,3.41987903]
[1765730047168,0.0902,3093.5,3092.9,0.1867]
[1765730047367,1.15223974,3094.1,3093.2,3.23282159]
[1765730047663,1.15223974,3094.1,3093.4,0.4548]
[1765730048067,3.23206205,3094.0,3093.4,0.4548]
[1765730048429,6.4641241,3094.0,3093.4,0.4548]
[1765730048775,0.1833,3093.9,3093.4,0.4548]
[1765730049374,0.761621,3094.0,3093.4,3.68747433]
[1765730049530,0.001,3094.1,3093.9,0.4548]
[1765730050070,0.001,3094.1,3093.5,3.69548364]
[1765730050733,0.001,3094.1,3093.5,0.463]
[1765730051054,0.55325841,3094.1,3094.0,0.4548]
[1765730051264,0.001,3094.1,3094.0,0.4548]
[1765730055059,0.001,3094.1,3094.0,0.9178]
[1765730056434,0.001,3094.1,3094.0,0.4548]
[1765730061179,0.001,3094.1,3094.0,0.9178]
[1765730061765,0.001,3094.1,3094.0,0.4548]
[1765730065267,0.0912,3094.1,3093.8,0.463]
[1765730065446,0.001,3094.1,3094.0,0.4548]
[1765730066973,0.001,3094.1,3094.0,4.57806605]
[1765730067173,0.001,3094.1,3094.0,5.08217266]
[1765730069184,0.001,3094.1,3094.0,5.66264795]
[1765730069370,0.001,3094.1,3094.0,12.01360857]
[1765730069574,0.001,3094.1,3094.0,5.66264795]
[1765730069892,0.001,3094.1,3093.7,3.23230652]
[1765730070185,0.001,3094.1,3093.7,0.515]
[1765730070753,0.6465,3093.8,3093.2,0.4857]
[1765730070953,0.6465,3093.8,3092.8,6.35096062]
[1765730070954,0.6465,3093.8,3092.9,0.7017]
[1765730070955,0.4596,3093.3,3092.9,0.7017]
[1765730071252,0.4596,3093.3,3092.9,0.515]
[1765730071446,0.4596,3093.3,3092.6,3.41838569]
[1765730071447,3.69247945,3093.3,3092.7,3.23341077]
[1765730071653,0.4596,3093.3,3092.7,3.23341077]
[1765730071858,3.69240009,3093.3,3092.7,3.23341077]
[1765730072176,3.69240009,3093.3,3092.6,3.93338653]
[1765730072377,3.69240009,3093.3,3092.6,0.1849]
[1765730072682,3.78290009,3093.3,3092.6,3.41835555]
[1765730073278,3.78290009,3093.3,3092.7,3.23339233]
[1765730073279,0.5501,3093.3,3092.7,3.23339233]
[1765730073483,3.7828997,3093.3,3092.7,3.23339233]
[1765730073859,7.62674813,3093.3,3092.5,0.002]
[1765730074056,0.0905,3092.8,3092.5,0.002]
[1765730075256,3.23342063,3092.7,3092.5,0.002]
[1765730075774,3.41742751,3093.0,3092.5,0.002]
[1765730075975,0.4995,3092.9,3092.5,0.002]
[1765730076165,6.96592308,3092.9,3092.5,0.002]
[1765730076368,7.68094539,3092.9,3092.5,0.002]
[1765730077185,0.05,3092.6,3092.5,0.002]
[1765730077357,3.28352518,3092.6,3092.5,0.002]
[1765730077563,3.77852518,3092.6,3092.5,0.002]
[1765730078279,3.23344957,3092.7,3092.5,0.002]
[1765730078481,0.0544,3092.6,3092.5,0.002]
[1765730078784,0.545,3092.6,3092.5,0.002]
[1765730079369,10.70996109,3092.6,3092.5,0.002]
[1765730079667,4.38340047,3092.6,3092.5,0.002]
[1765730079876,4.87400047,3092.6,3092.5,0.002]
[1765730080086,5.76171238,3092.6,3092.5,0.002]
[1765730080993,12.20369883,3092.6,3092.5,0.002]
[1765730082796,12.60920283,3092.6,3092.5,0.002]
[1765730083162,12.09420283,3092.6,3092.5,0.002]
[1765730083500,12.60920283,3092.6,3092.5,0.002]
[1765730085918,12.73871071,3092.6,3092.5,0.002]
[1765730086632,13.17980953,3092.6,3092.5,0.002]
[1765730086818,12.73871071,3092.6,3092.5,0.002]
[1765730087524,13.17980953,3092.6,3092.5,0.002]
[1765730087726,13.62220406,3092.6,3092.5,0.002]
[1765730087944,10.57119716,3091.9,3091.8,1e-08]
[1765730088220,12.65623143,3091.9,3091.8,1e-08]
[1765730088400,13.15573143,3091.9,3091.8,1e-08]
[1765730088802,13.59683025,3091.9,3091.8,1e-08]
[1765730089115,1.42707811,3091.8,3091.3,0.002]
[1765730089315,7.38203991,3091.4,3091.3,0.002]
[1765730089619,8.6352439,3091.4,3091.3,0.002]
[1765730089792,9.1347439,3091.4,3091.3,0.002]
[1765730089994,12.36952425,3091.4,3091.3,0.002]
[1765730090315,0.0053,3090.9,3089.8,0.1509]
[1765730090527,1.26797529,3091.3,3089.8,3.87304754]
[1765730090528,0.0733,3090.7,3089.8,3.87304754]
[1765730090693,0.09102583,3090.5,3089.8,1.02390475]
[1765730090894,0.515,3090.4,3089.8,1.02390475]
[1765730091313,0.4642,3089.9,3088.9,0.6706]
[1765730091493,0.9792,3089.9,3089.0,0.4857]
[1765730091688,0.09102583,3089.8,3089.0,0.4857]
[1765730092090,0.09102583,3089.8,3089.0,3.72297038]
[1765730092407,3.84250704,3089.8,3089.0,3.7229127]
[1765730092595,7.07898825,3089.8,3089.1,0.4857]
[1765730092790,3.84250704,3089.8,3089.1,0.4857]
[1765730093027,0.09102583,3089.6,3088.9,0.1849]
[1765730093223,0.09102583,3089.6,3088.0,0.1849]
[1765730093414,0.4995,3089.5,3088.3,0.4857]
[1765730093995,3.23739842,3088.9,3088.3,0.4857]
[1765730094191,0.60602583,3089.0,3088.3,0.85809003]
[1765730094518,0.515,3089.0,3088.3,3.72372739]
[1765730094724,6.9896412,3089.0,3088.4,0.4857]
[1765730094922,0.09102583,3088.9,3088.4,0.4857]
[1765730095225,0.76847529,3088.9,3087.6,0.1849]
[1765730095434,3.23713208,3089.2,3088.8,0.4874]
[1765730095592,6.47426416,3089.2,3088.2,3.2380675]
[1765730095793,6.47426416,3089.2,3088.3,3.23802288]
[1765730096004,3.23729362,3089.0,3088.1,0.1849]
[1765730096205,0.58047529,3088.9,3088.1,0.1849]
[1765730096531,0.515,3088.8,3087.8,0.4847]
[1765730097230,0.9762,3088.8,3087.6,0.1849]
[1765730097617,6.81216062,3088.7,3087.6,0.1869]
[1765730097795,6.81216062,3088.7,3087.6,0.6716]
[1765730097994,0.58047529,3088.4,3087.6,0.002]
[1765730098196,0.09102583,3088.0,3087.6,0.002]
[1765730098402,0.515,3087.9,3087.6,0.4867]
[1765730098811,1.02939284,3088.3,3087.8,0.4725]
[1765730099009,6.56651575,3088.6,3088.2,0.4725]
[1765730099231,3.75274496,3088.6,3087.8,0.4847]
[1765730099442,6.47479684,3088.9,3088.5,0.4725]
[1765730099728,0.09102583,3088.6,3087.8,0.4847]
[1765730100118,0.09102583,3089.2,3088.5,3.89601479]
[1765730100320,0.09202583,3089.8,3088.5,3.89601479]
[1765730100321,0.09202583,3089.8,3089.1,0.6582]
[1765730100496,0.09202583,3089.8,3089.2,0.4725]
[1765730100497,3.23747273,3089.8,3089.2,0.4725]
[1765730100702,3.23749527,3089.8,3089.2,0.9572]
[1765730100938,0.001,3089.8,3089.7,0.4725]
[1765730101440,0.001,3089.8,3089.7,0.9572]
[1765730102111,0.001,3089.8,3089.7,4.19376018]
[1765730102934,0.001,3089.8,3089.7,0.9572]
[1765730103137,0.001,3089.8,3089.7,4.19376018]
[1765730103303,0.001,3089.8,3089.7,4.93680384]
[1765730103497,0.001,3089.8,3089.7,5.92278313]
[1765730103710,0.001,3089.8,3089.7,35.92278313]
[1765730103914,0.001,3091.1,3090.0,0.405504]
[1765730104121,0.001,3091.1,3091.0,0.6582]
[1765730104309,0.001,3091.1,3091.0,3.89339896]
[1765730104508,0.001,3091.1,3091.0,4.37809896]
[1765730104929,0.001,3091.1,3091.0,0.6582]
[1765730105133,0.001,3091.1,3091.0,1.1429]
[1765730105606,0.001,3091.1,3091.0,4.37809896]
[1765730105942,0.001,3091.1,3091.0,5.22141286]
[1765730106232,0.001,3091.1,3090.7,0.6704]
[1765730106434,0.001,3091.1,3090.7,0.1857]
[1765730106643,0.001,3091.1,3089.0,0.002]
[1765730106644,0.6465,3090.8,3089.0,0.002]
[1765730106942,0.0009,3090.5,3089.6,3.23666452]
[1765730107123,0.58047529,3091.6,3090.1,3.23613416]
[1765730107430,0.4622,3091.1,3089.7,1.0017]
[1765730107631,0.4622,3091.1,3090.1,3.23613203]
[1765730107632,0.001,3091.1,3090.1,3.23613203]
[1765730107835,0.04143867,3091.1,3090.1,3.23613203]
[1765730108040,0.001,3091.1,3090.2,0.6704]
[1765730108235,0.001,3091.1,3090.3,3.23593178]
[1765730108424,0.001,3091.1,3090.4,0.4847]
[1765730109437,0.04143867,3091.1,3090.2,0.1857]
[1765730109623,0.001,3091.1,3090.3,0.4847]
[1765730110238,0.001,3091.1,3090.4,3.23582707]
[1765730110565,0.001,3091.1,3091.0,0.4725]
[1765730111039,0.001,3091.1,3091.0,0.9572]
[1765730112012,0.001,3091.1,3091.0,1.4742]
[1765730113717,0.001,3091.1,3090.7,0.4847]
[1765730114242,0.001,3091.1,3091.0,0.4725]
[1765730114616,0.001,3091.1,3091.0,0.9572]
[1765730115033,0.001,3091.1,3091.0,4.19239896]
[1765730115360,0.001,3091.1,3091.0,5.85768368]
[1765730116414,0.001,3091.1,3091.0,5.34068368]
[1765730116640,0.001,3091.1,3091.0,5.85768368]
[1765730116841,0.001,3091.1,3091.0,36.43815897]
[1765730117243,0.001,3091.1,3091.0,23.74015897]
[1765730120946,0.001,3091.1,3091.0,27.58015897]
[1765730121622,0.001,3091.1,3091.0,27.57915897]
[1765730123362,0.001,3091.1,3091.0,33.96015273]
[1765730129334,0.001,3091.1,3091.0,46.93382011]
[1765730130960,0.001,3091.1,3091.0,43.09382011]
[1765730131372,0.001,3091.1,3091.0,43.22325717]
[1765730131660,0.001,3091.1,3091.0,36.43715897]
[1765730132768,0.001,3091.1,3091.0,35.92115897]
[1765730132946,0.001,3091.1,3091.0,36.43715897]
[1765730133467,0.001,3091.1,3091.0,35.92115897]
[1765730133657,0.001,3091.1,3091.0,36.43715897]
[1765730135165,0.001,3091.1,3091.0,43.094014]
[1765730135870,0.001,3091.1,3091.0,46.934014]
[1765730137144,0.001,3091.1,3091.0,40.27615897]
[1765730138345,0.001,3091.1,3091.0,10.27615897]
[1765730138542,0.001,3091.1,3091.0,40.27615897]
[1765730138975,0.001,3091.1,3091.0,28.15015897]
[1765730139465,0.001,3091.1,3091.0,22.34415897]
[1765730139660,0.001,3091.1,3091.0,20.25315897]
[1765730140555,0.001,3091.1,3091.0,40.27615897]
[1765730141573,0.001,3091.1,3091.0,36.43615897]
[1765730141770,0.001,3091.1,3091.0,15.46015897]
[1765730142468,0.001,3091.1,3091.0,6.43615897]
[1765730142670,0.001,3091.1,3091.0,13.96745897]
[1765730142865,0.001,3091.1,3091.0,14.48245897]
[1765730143255,0.001,3091.1,3091.0,13.73967825]
[1765730143459,0.001,3091.1,3091.0,5.20867825]
[1765730144046,0.56,3091.1,3091.0,3.23519896]
[1765730144377,0.56,3091.1,3091.0,4.33067425]
[1765730144584,0.56,3091.1,3091.0,3.23519896]
[1765730144754,0.56,3091.1,3090.9,3.23526915]
[1765730144956,0.0793,3091.0,3090.8,3.23538447]
[1765730145151,0.662,3090.9,3090.8,3.75038447]
[1765730146750,0.662,3090.9,3090.8,0.515]
[1765730146981,0.662,3090.9,3090.7,0.515]
[1765730146982,0.7612,3090.9,3090.7,0.515]
[1765730147187,0.2815,3090.9,3090.7,0.515]
[1765730147388,0.4759,3090.8,3090.7,0.515]
[1765730147751,0.001,3091.1,3090.7,0.515]
[1765730147957,0.4811,3091.1,3090.7,0.515]
[1765730148457,0.0989,3090.8,3090.7,0.515]
[1765730149162,0.0989,3090.8,3090.7,4.33098828]
[1765730150587,0.4811,3091.1,3090.7,7.56650127]
[1765730150979,0.001,3091.1,3090.8,0.885904]
[1765730151278,0.001,3091.1,3090.8,0.405504]
[1765730151478,0.001,3091.1,3090.9,3.23530363]
[1765730153491,0.001,3091.1,3091.0,4.13120296]
[1765730153690,0.001,3091.1,3091.0,5.19207825]
[1765730157664,0.001,3091.1,3091.0,42.02907825]
[1765730157861,0.001,3091.1,3091.0,45.19207825]
[1765730158096,0.001,3091.1,3091.0,29.35607825]
[1765730158767,0.001,3091.1,3091.0,35.19207825]
[1765730159301,0.001,3091.1,3091.0,22.52107825]
[1765730159496,0.001,3091.1,3091.0,12.91307825]
[1765730159700,0.001,3091.1,3091.0,17.26807825]
[1765730159882,0.001,3091.1,3091.0,34.94207825]
[1765730160771,0.001,3091.1,3091.0,39.54707825]
[1765730162072,0.1042,3091.1,3091.0,7.07519896]
[1765730162274,0.5546,3091.1,3090.2,0.1857]
[1765730162603,0.0045,3091.0,3090.8,3.23536604]
[1765730162802,0.0045,3091.0,3090.9,3.23530363]
[1765730163007,0.4584,3091.0,3090.9,3.23530363]
[1765730163597,0.4584,3091.0,3090.7,3.75043322]
[1765730163805,0.2811,3090.8,3090.7,4.73641251]
[1765730164581,0.735,3090.8,3090.7,4.73641251]
[1765730166782,0.735,3090.8,3090.7,3.75051299]
[1765730166982,0.735,3090.8,3090.7,0.515]
[1765730167807,0.2811,3090.8,3090.7,3.75051299]
[1765730169608,0.7358,3090.8,3090.7,3.75051299]
[1765730170080,0.2811,3090.8,3090.7,3.23551299]
[1765730170281,0.7358,3090.8,3090.7,3.23551299]
[1765730172607,0.2811,3090.8,3090.7,3.23551299]
[1765730173004,0.7358,3090.8,3090.7,3.23551299]
[1765730173184,0.0907,3090.8,3090.7,3.23551299]
[1765730173390,0.551,3090.8,3090.7,3.23551299]
[1765730174615,0.0907,3090.8,3090.7,3.23551299]
[1765730175727,0.4613,3091.1,3090.7,6.47102598]
[1765730176022,0.0944,3090.8,3090.7,3.23551299]
[1765730177207,0.0944,3090.8,3090.7,3.75051299]
[1765730179187,0.4613,3091.1,3090.7,6.98602598]
[1765730179382,0.001,3091.1,3091.0,0.4598]
[1765730179584,0.001,3091.1,3090.8,0.4675]
[1765730179894,0.001,3091.1,3090.8,1.2128526]
[1765730180095,0.001,3091.1,3090.8,0.7453526]
[1765730180289,0.001,3091.1,3090.9,3.23530363]
[1765730180689,0.0734,3091.0,3090.9,3.23530363]
[1765730182817,0.0734,3091.0,3090.8,3.23530484]
[1765730183596,0.001,3091.1,3090.9,1.91327929]
[1765730183796,0.001,3091.1,3091.0,31.04027529]
[1765730183996,0.001,3091.1,3091.0,31.91327929]
[1765730184301,0.001,3091.1,3091.0,38.57676188]
[1765730184824,0.001,3091.1,3091.0,45.21496084]
[1765730188133,0.001,3091.1,3091.0,45.65196084]
[1765730189235,0.001,3091.1,3091.0,45.76145684]
[1765730189646,0.001,3091.1,3091.0,46.16696084]
[1765730191440,0.001,3091.1,3091.0,45.86664619]
[1765730193337,0.001,3091.1,3091.0,7.65567425]
[1765730193522,0.001,3091.1,3091.0,8.17067425]
[1765730193834,0.001,3091.1,3091.0,8.62507425]
[1765730194140,0.001,3091.1,3091.0,9.03057825]
[1765730194714,0.001,3091.1,3091.0,15.88514619]
[1765730195941,0.001,3091.1,3091.0,45.88514619]
[1765730198164,0.001,3091.1,3091.0,42.04514619]
[1765730199640,0.001,3091.1,3091.0,37.11314619]
[1765730200148,0.001,3091.1,3091.0,42.04514619]
[1765730201228,0.001,3091.1,3091.0,15.44814619]
[1765730201450,0.001,3091.1,3091.0,48.60124505]
[1765730202330,0.001,3091.1,3091.0,49.25264505]
[1765730202925,0.106,3091.1,3091.0,8.52017825]
[1765730203245,0.001,3091.1,3091.0,9.49431165]
[1765730203433,0.001,3091.1,3091.0,4.73617825]
[1765730203746,0.001,3091.1,3091.0,35.68197825]
[1765730203926,0.001,3091.1,3091.0,39.52197825]
[1765730207229,0.001,3091.1,3091.0,42.92497825]
[1765730208645,0.001,3091.1,3091.0,39.00697825]
[1765730208838,0.001,3091.1,3091.0,39.52197825]
[1765730209236,0.001,3091.1,3091.0,36.65097825]
[1765730209424,0.001,3091.1,3091.0,27.84497825]
[1765730210449,0.001,3091.1,3091.0,39.52197825]
[1765730211918,0.001,3091.1,3091.0,39.03057825]
[1765730212823,0.563,3091.1,3091.0,7.65567425]
[1765730213134,0.563,3091.1,3091.0,8.17067425]
[1765730213347,0.563,3091.1,3091.0,8.57617825]
[1765730214422,0.563,3091.1,3091.0,4.22117825]
[1765730214638,0.563,3091.1,3091.0,4.33067425]
[1765730215022,0.563,3091.1,3091.0,3.81567425]
[1765730215265,0.563,3091.1,3090.8,3.23538398]
[1765730215438,0.1955,3090.9,3090.8,4.33085927]
[1765730215956,0.656,3090.9,3090.8,4.33085927]
[1765730216565,0.656,3090.9,3090.2,3.23598652]
[1765730216732,0.1909,3090.9,3090.8,3.2354083]
[1765730216936,0.1909,3090.9,3090.8,3.7504083]
[1765730217233,0.7444,3090.9,3090.1,0.58047529]
[1765730217438,0.0729,3090.8,3090.7,3.23551299]
[1765730217755,0.0729,3090.8,3090.6,3.23558833]
[1765730218160,0.4765,3090.7,3090.6,3.81606362]
[1765730218461,0.4765,3090.7,3090.6,3.23558833]
[1765730218662,0.5534,3090.7,3090.4,0.58047529]
[1765730218841,0.4806,3090.5,3090.4,0.58047529]
[1765730219158,0.4806,3090.5,3089.0,20.20602583]
[1765730219159,0.4806,3090.5,3089.7,3.84]
[1765730219357,0.4876,3090.4,3090.2,3.23603407]
[1765730219747,0.0678,3090.3,3090.2,3.81650936]
[1765730220256,0.0678,3090.3,3089.4,0.002]
[1765730220457,0.4876,3090.4,3089.4,0.002]
[1765730220458,0.6711,3089.9,3089.4,0.002]
[1765730220650,0.6711,3089.9,3089.8,0.922504]
[1765730220853,0.7458,3089.9,3089.8,0.922504]
[1765730221232,0.4876,3090.4,3089.9,0.405504]
[1765730222660,0.1909,3090.9,3090.3,0.489]
[1765730222875,0.6785,3090.9,3090.4,0.920504]
[1765730223205,0.6785,3090.9,3090.4,1.50097929]
[1765730223206,0.1909,3090.9,3090.4,1.50097929]
[1765730223468,0.1909,3090.9,3090.6,0.405504]
[1765730224460,0.1909,3090.9,3090.7,3.23551299]
[1765730224767,0.1909,3090.9,3090.8,0.515]
[1765730225154,0.2587,3090.9,3090.8,0.515]
[1765730225868,0.001,3091.1,3090.9,0.405504]
[1765730226454,0.001,3091.1,3091.0,4.22117825]
[1765730226849,0.0695,3091.1,3091.0,4.22117825]
[1765730227252,0.5529,3091.1,3091.0,4.22117825]
[1765730227461,0.0695,3091.1,3091.0,4.73617825]
[1765730227662,0.5529,3091.1,3091.0,4.73617825]
[1765730227863,0.001,3091.1,3091.0,6.55588948]
[1765730228068,0.001,3091.1,3091.0,46.55588948]
[1765730228305,0.001,3091.1,3091.0,36.55588948]
[1765730229154,0.001,3091.1,3091.0,22.99388948]
[1765730229978,0.001,3091.1,3091.0,36.55588948]
[1765730231281,0.001,3091.1,3091.0,27.34488948]
[1765730232065,0.001,3091.1,3091.0,33.26388948]
[1765730232266,0.001,3091.1,3091.0,27.43688948]
[1765730232669,0.001,3091.1,3091.0,26.94288948]
[1765730233186,0.0695,3091.1,3091.0,13.02858948]
[1765730233475,0.0737,3091.1,3091.0,5.57558948]
[1765730233678,0.0737,3091.1,3091.0,35.57558948]
[1765730233862,0.001,3091.1,3091.0,15.79158948]
[1765730234490,0.001,3091.1,3091.0,16.77188948]
[1765730235585,0.001,3091.1,3091.0,6.55588948]
[1765730235889,0.001,3091.1,3091.0,36.55588948]
[1765730236991,0.001,3091.1,3091.0,13.90188948]
[1765730237597,0.001,3091.1,3091.0,36.55588948]
[1765730238176,0.001,3091.1,3091.0,13.49358948]
[1765730238377,0.001,3091.1,3091.0,12.97858948]
[1765730238575,0.001,3091.1,3091.0,13.49358948]
[1765730238776,0.001,3091.1,3091.0,36.06458948]
[1765730238974,0.001,3091.1,3091.0,36.55588948]
[1765730240194,0.001,3091.1,3091.0,42.91996131]
[1765730240591,0.001,3092.1,3091.1,0.98597929]
[1765730240891,0.001,3092.1,3091.8,0.98597929]
[1765730241196,0.001,3092.1,3091.9,0.515]
[1765730241392,0.4886,3092.1,3091.9,0.515]
[1765730241700,0.4886,3092.1,3092.0,3.23415265]
[1765730242202,0.5575,3092.1,3092.0,3.23415265]
[1765730243580,0.0699,3092.1,3092.0,3.81462794]
[1765730244097,0.001,3092.1,3092.0,5.1005671]
[1765730244303,0.0699,3092.1,3092.0,4.6115671]
[1765730247104,0.0672,3092.1,3092.0,4.6115671]
[1765730248596,0.001,3092.1,3092.0,5.9682711]
[1765730248768,0.001,3092.1,3092.0,5.5074711]
[1765730249170,0.001,3092.1,3092.0,35.9682711]
[1765730249386,0.001,3092.1,3092.0,40.72521169]
[1765730249585,0.001,3092.1,3092.0,13.54741169]
[1765730249798,0.0672,3092.1,3092.0,12.55001169]
[1765730250374,0.0672,3092.1,3092.0,12.18701169]
[1765730250700,0.0672,3092.1,3092.0,5.0170711]
[1765730250905,0.0672,3092.1,3092.0,3.81462794]
[1765730250906,0.5533,3092.1,3092.0,3.81462794]
[1765730251074,0.5533,3092.1,3091.9,3.7492158]
[1765730251405,0.4871,3092.1,3091.9,3.7492158]
[1765730251703,0.259,3092.0,3091.9,4.73519509]
[1765730252002,0.259,3092.0,3091.8,3.74934917]
[1765730252204,0.6858,3091.9,3091.8,3.74934917]
[1765730252373,0.7472,3091.9,3091.8,3.74934917]
[1765730252976,3.98147063,3091.9,3091.3,3.23485982]
[1765730253192,0.4898,3091.4,3091.2,3.23491303]
[1765730253405,0.4856,3091.3,3091.2,1.09447529]
[1765730253704,0.4856,3091.3,3091.2,0.514]
[1765730253905,0.5517,3091.3,3091.0,3.23717342]
[1765730254079,0.4898,3091.1,3091.0,3.81764871]
[1765730254279,0.4898,3091.1,3091.0,3.75117342]
[1765730254506,0.5517,3091.1,3091.0,3.75117342]
[1765730254706,0.5517,3091.1,3091.0,4.33164871]
[1765730255097,0.4898,3091.1,3091.0,4.33164871]
[1765730255483,0.4898,3091.1,3091.0,4.73715271]
[1765730256206,0.5517,3091.1,3091.0,3.81764871]
[1765730256407,0.5517,3091.1,3091.0,0.002]
[1765730261301,3.7867943,3091.1,3091.0,0.002]
[1765730261500,0.5517,3091.1,3091.0,0.002]
[1765730266993,0.5527,3091.1,3091.0,0.002]
[1765730267502,3.7877943,3091.1,3091.0,0.002]
[1765730267698,4.4900633,3091.1,3091.0,0.002]
[1765730268026,1.254969,3091.1,3091.0,0.002]
[1765730268395,0.5527,3091.1,3091.0,0.002]
[1765730270529,0.4908,3091.1,3091.0,0.002]
[1765730270709,0.001,3091.1,3091.0,0.517]
[1765730270908,0.001,3091.1,3091.0,1.0074]
[1765730271831,0.001,3091.1,3091.0,0.517]
[1765730272222,0.001,3091.1,3091.0,1.873704]
[1765730272616,0.001,3091.1,3091.0,5.29627336]
[1765730274010,0.001,3091.1,3091.0,19.83474865]
[1765730274440,0.001,3091.1,3091.0,35.87674865]
[1765730274728,0.001,3091.1,3091.0,16.01874865]
[1765730275332,0.001,3091.1,3091.0,8.95374865]
[1765730275538,0.001,3091.1,3091.0,12.81794865]
[1765730275724,0.001,3091.1,3091.0,13.33294865]
[1765730275911,0.001,3091.1,3091.0,13.79374865]
[1765730276713,0.001,3091.1,3091.0,17.68474865]
[1765730277847,0.001,3091.1,3091.0,4.90094865]
[1765730278143,0.001,3091.1,3091.0,13.62794865]
[1765730278510,0.001,3091.1,3091.0,9.92904865]
[1765730278710,0.001,3091.1,3091.0,5.90804865]